[Event "Polofinale MCR junioru 2023"]
[Site "Czech Republic"]
[Date "2023.11.15"]
[Round "6.28"]
[White "Popov, Roman"]
[Black "Veny, Jaume"]
[Result "0-1"]
[TimeControl "90 min per 40 moves + 15 min + 30 sec / move from move 1"]
[WhiteFideId "23732580"]
[BlackFideId "397792"]
[WhiteElo "1889"]
[BlackElo "1729"]

1. d4 {[%clk 01:30:52]} {[%emt 00:00:08]} Nf6 {[%clk 01:30:47]} {[%emt
00:00:13]} 2. c4 {[%clk 01:31:15]} {[%emt 00:00:07]} e6 {[%clk 01:30:57]}
{[%emt 00:00:21]} 3. Nc3 {[%clk 01:30:15]} {[%emt 00:01:30]} c5 {[%clk
01:30:42]} {[%emt 00:00:45]} 4. d5 {[%clk 01:30:25]} {[%emt 00:00:20]} exd5
{[%clk 01:31:00]} {[%emt 00:00:12]} 5. cxd5 {[%clk 01:30:38]} {[%emt 00:00:16]}
d6 {[%clk 01:31:21]} {[%emt 00:00:09]} 6. e4 {[%clk 01:30:25]} {[%emt
00:00:43]} g6 {[%clk 01:31:37]} {[%emt 00:00:14]} 7. h3 {[%clk 01:28:46]}
{[%emt 00:02:09]} Bg7 {[%clk 01:29:27]} {[%emt 00:02:40]} 8. Nf3 {[%clk
01:28:35]} {[%emt 00:00:41]} O-O {[%clk 01:29:41]} {[%emt 00:00:16]} 9. Be2
{[%clk 01:25:23]} {[%emt 00:03:42]} b5 {[%clk 01:24:54]} {[%emt 00:05:17]} 10.
Bxb5 {[%clk 01:07:40]} {[%emt 00:18:13]} Nxe4 {[%clk 01:24:47]} {[%emt
00:00:38]} 11. Nxe4 {[%clk 01:00:09]} {[%emt 00:08:01]} Qa5+ {[%clk 01:24:51]}
{[%emt 00:00:25]} 12. Bd2 {[%clk 00:58:45]} {[%emt 00:01:54]} Qxb5 {[%clk
01:25:14]} {[%emt 00:00:07]} 13. Nxd6 {[%clk 00:57:07]} {[%emt 00:02:09]} Qxb2
{[%clk 01:19:24]} {[%emt 00:06:20]} 14. Rb1 {[%clk 00:40:11]} {[%emt 00:17:26]}
Qxa2 {[%clk 01:15:18]} {[%emt 00:04:36]} 15. O-O {[%clk 00:30:19]} {[%emt
00:10:22]} Qxd5 {[%clk 01:01:34]} {[%emt 00:14:13]} 16. Be3 {[%clk 00:28:48]}
{[%emt 00:02:01]} Be6 {[%clk 00:49:33]} {[%emt 00:12:31]} 17. Ng5 {[%clk
00:16:06]} {[%emt 00:13:12]} Na6 {[%clk 00:34:33]} {[%emt 00:15:30]} 18. Qxd5
{[%clk 00:11:18]} {[%emt 00:05:17]} Bxd5 {[%clk 00:34:57]} {[%emt 00:00:06]} 19.
Rfd1 {[%clk 00:11:22]} {[%emt 00:00:26]} Bc6 {[%clk 00:33:00]} {[%emt
00:02:27]} 20. Rbc1 {[%clk 00:03:10]} {[%emt 00:08:43]} h6 {[%clk 00:29:20]}
{[%emt 00:04:10]} 21. Nge4 {[%clk 00:02:56]} {[%emt 00:00:44]} Bxe4 {[%clk
00:29:39]} {[%emt 00:00:12]} 22. Nxe4 {[%clk 00:03:20]} {[%emt 00:00:06]} Rfc8
{[%clk 00:29:56]} {[%emt 00:00:12]} 23. Nxc5 {[%clk 00:02:02]} {[%emt
00:01:48]} Nxc5 {[%clk 00:30:22]} {[%emt 00:00:05]} 24. Rxc5 {[%clk 00:01:19]}
{[%emt 00:01:13]} Rxc5 {[%clk 00:30:46]} {[%emt 00:00:06]} 25. Bxc5 {[%clk
00:01:43]} {[%emt 00:00:06]} a5 {[%clk 00:31:10]} {[%emt 00:00:06]} 26. Rd2
{[%clk 00:00:42]} {[%emt 00:01:31]} a4 {[%clk 00:31:22]} {[%emt 00:00:18]} 27.
Ra2 {[%clk 00:00:54]} {[%emt 00:00:17]} f5 {[%clk 00:29:29]} {[%emt 00:02:23]}
28. Kf1 {[%clk 00:00:52]} {[%emt 00:00:32]} Kf7 {[%clk 00:29:44]} {[%emt
00:00:15]} 29. Ke2 {[%clk 00:00:53]} {[%emt 00:00:29]} Ke6 {[%clk 00:30:06]}
{[%emt 00:00:08]} 30. Kd3 {[%clk 00:00:53]} {[%emt 00:00:30]} Kd5 {[%clk
00:30:21]} {[%emt 00:00:15]} 31. Ba3 {[%clk 00:00:37]} {[%emt 00:00:46]} h5
{[%clk 00:27:47]} {[%emt 00:03:04]} 32. Bb4 {[%clk 00:00:36]} {[%emt 00:00:31]}
Be5 {[%clk 00:27:00]} {[%emt 00:01:17]} 33. f3 {[%clk 00:00:36]} {[%emt
00:00:30]} Bd4 {[%clk 00:26:08]} {[%emt 00:01:22]} 34. g3 {[%clk 00:00:36]}
{[%emt 00:00:31]} Ra6 {[%clk 00:24:08]} {[%emt 00:02:30]} 35. Rc2 {[%clk
00:00:33]} {[%emt 00:00:33]} a3 {[%clk 00:22:38]} {[%emt 00:02:00]} 36. Ra2
{[%clk 00:00:48]} {[%emt 00:00:15]} Bb2 {[%clk 00:22:39]} {[%emt 00:00:29]} 37.
Bc3 {[%clk 00:00:39]} {[%emt 00:00:39]} Rb6 {[%clk 00:22:16]} {[%emt 00:00:53]}
38. Bd2 {[%clk 00:00:33]} {[%emt 00:00:36]} Rb3+ {[%clk 00:22:25]} {[%emt
00:00:21]} 39. Ke2 {[%clk 00:00:42]} {[%emt 00:00:21]} Kc4 {[%clk 00:22:27]}
{[%emt 00:00:28]} 40. Kd1 {[%clk 00:00:31]} {[%emt 00:00:40]} Rxf3 {[%clk
00:22:25]} {[%emt 00:00:31]} 0-1

[Event "Polofinale MCR junioru 2023"]
[Site "Czech Republic"]
[Date "2023.11.15"]
[Round "6.29"]
[White "Zezula, Matej"]
[Black "Fizerova, Lucie"]
[Result "1-0"]
[TimeControl "90 min per 40 moves + 15 min + 30 sec / move from move 1"]
[WhiteFideId "23725796"]
[BlackFideId "385115"]
[WhiteElo "1666"]
[BlackElo "1886"]

1. e4 {[%clk 01:30:56]} {[%emt 00:00:03]} c5 {[%clk 01:30:53]} {[%emt
00:00:08]} 2. Nf3 {[%clk 01:31:19]} {[%emt 00:00:07]} d6 {[%clk 01:30:52]}
{[%emt 00:00:30]} 3. d4 {[%clk 01:31:43]} {[%emt 00:00:06]} cxd4 {[%clk
01:31:17]} {[%emt 00:00:06]} 4. Nxd4 {[%clk 01:32:08]} {[%emt 00:00:04]} Nf6
{[%clk 01:31:42]} {[%emt 00:00:05]} 5. Nc3 {[%clk 01:32:33]} {[%emt 00:00:05]}
Nc6 {[%clk 01:32:07]} {[%emt 00:00:06]} 6. Bg5 {[%clk 01:32:24]} {[%emt
00:00:39]} e6 {[%clk 01:32:15]} {[%emt 00:00:22]} 7. Qd2 {[%clk 01:32:07]}
{[%emt 00:00:47]} a6 {[%clk 01:32:37]} {[%emt 00:00:08]} 8. O-O-O {[%clk
01:31:53]} {[%emt 00:00:44]} Bd7 {[%clk 01:33:00]} {[%emt 00:00:07]} 9. f4
{[%clk 01:30:05]} {[%emt 00:02:17]} b5 {[%clk 01:33:14]} {[%emt 00:00:16]} 10.
Nxc6 {[%clk 01:01:34]} {[%emt 00:29:02]} Bxc6 {[%clk 01:33:32]} {[%emt
00:00:11]} 11. Bd3 {[%clk 01:01:18]} {[%emt 00:00:46]} Qb6 {[%clk 01:31:04]}
{[%emt 00:02:59]} 12. Rhg1 {[%clk 00:55:20]} {[%emt 00:06:28]} b4 {[%clk
01:26:53]} {[%emt 00:04:42]} 13. Bxf6 {[%clk 00:53:36]} {[%emt 00:02:13]} gxf6
{[%clk 01:25:01]} {[%emt 00:02:21]} 14. Nb1 {[%clk 00:52:21]} {[%emt 00:01:45]}
a5 {[%clk 01:20:49]} {[%emt 00:04:43]} 15. e5 {[%clk 00:51:04]} {[%emt
00:01:47]} O-O-O {[%clk 01:10:23]} {[%emt 00:10:56]} 16. exf6 {[%clk 00:49:41]}
{[%emt 00:01:53]} a4 {[%clk 01:08:38]} {[%emt 00:02:15]} 17. g4 {[%clk
00:46:52]} {[%emt 00:03:18]} Bd5 {[%clk 01:07:00]} {[%emt 00:02:08]} 18. a3
{[%clk 00:43:44]} {[%emt 00:03:39]} b3 {[%clk 01:03:33]} {[%emt 00:03:57]} 19.
Rg3 {[%clk 00:42:06]} {[%emt 00:02:07]} Rd7 {[%clk 01:00:24]} {[%emt 00:03:40]}
20. Nc3 {[%clk 00:38:29]} {[%emt 00:04:06]} Bc6 {[%clk 00:57:58]} {[%emt
00:02:56]} 21. f5 {[%clk 00:32:05]} {[%emt 00:06:54]} e5 {[%clk 00:55:58]}
{[%emt 00:02:30]} 22. Bc4 {[%clk 00:18:43]} {[%emt 00:13:51]} bxc2 {[%clk
00:51:01]} {[%emt 00:05:27]} 23. Qxc2 {[%clk 00:16:47]} {[%emt 00:02:26]} Qa5
{[%clk 00:46:07]} {[%emt 00:05:24]} 24. Bd5 {[%clk 00:15:29]} {[%emt 00:01:47]}
Rc7 {[%clk 00:45:10]} {[%emt 00:01:28]} 25. Kb1 {[%clk 00:12:40]} {[%emt
00:03:19]} Be8 {[%clk 00:39:25]} {[%emt 00:06:15]} 26. Qe4 {[%clk 00:10:50]}
{[%emt 00:02:19]} Rg8 {[%clk 00:38:36]} {[%emt 00:01:19]} 27. h4 {[%clk
00:08:25]} {[%emt 00:02:55]} Kb8 {[%clk 00:35:03]} {[%emt 00:04:04]} 28. g5
{[%clk 00:05:27]} {[%emt 00:03:27]} Rh8 {[%clk 00:33:57]} {[%emt 00:01:37]} 29.
h5 {[%clk 00:05:04]} {[%emt 00:00:53]} Kc8 {[%clk 00:31:59]} {[%emt 00:02:28]}
30. g6 {[%clk 00:01:55]} {[%emt 00:03:38]} Bh6 {[%clk 00:32:18]} {[%emt
00:00:11]} 31. gxf7 {[%clk 00:01:48]} {[%emt 00:00:37]} Bxf7 {[%clk 00:32:22]}
{[%emt 00:00:26]} 32. Bxf7 {[%clk 00:01:41]} {[%emt 00:00:38]} 1-0

[Event "Polofinale MCR junioru 2023"]
[Site "Czech Republic"]
[Date "2023.11.15"]
[Round "6.30"]
[White "Kocman, Patrik"]
[Black "Stejskal, Michal"]
[Result "0-1"]
[TimeControl "90 min per 40 moves + 15 min + 30 sec / move from move 1"]
[WhiteFideId "23735732"]
[BlackFideId "398195"]
[WhiteElo "1478"]
[BlackElo "1872"]

1. e4 {[%clk 01:30:56]} {[%emt 00:00:02]} e6 {[%clk 01:30:55]} {[%emt
00:00:05]} 2. d4 {[%clk 01:31:15]} {[%emt 00:00:12]} d5 {[%clk 01:31:20]}
{[%emt 00:00:05]} 3. Nd2 {[%clk 01:31:02]} {[%emt 00:00:42]} c5 {[%clk
01:31:06]} {[%emt 00:00:44]} 4. exd5 {[%clk 01:27:04]} {[%emt 00:04:29]} exd5
{[%clk 01:31:29]} {[%emt 00:00:07]} 5. Ngf3 {[%clk 01:27:06]} {[%emt 00:00:27]}
Nf6 {[%clk 01:30:58]} {[%emt 00:01:01]} 6. Be2 {[%clk 01:26:21]} {[%emt
00:01:46]} Nc6 {[%clk 01:31:32]} {[%emt 00:00:26]} 7. dxc5 {[%clk 01:25:24]}
{[%emt 00:01:27]} Bxc5 {[%clk 01:31:26]} {[%emt 00:00:35]} 8. Nb3 {[%clk
01:24:29]} {[%emt 00:01:26]} Bb6 {[%clk 01:31:51]} {[%emt 00:00:06]} 9. c3
{[%clk 01:24:39]} {[%emt 00:00:19]} O-O {[%clk 01:32:06]} {[%emt 00:00:15]} 10.
Bg5 {[%clk 01:23:52]} {[%emt 00:01:17]} Bxf2+ {[%clk 01:31:50]} {[%emt
00:00:46]} 11. Kxf2 {[%clk 01:22:32]} {[%emt 00:01:51]} Ne4+ {[%clk 01:32:01]}
{[%emt 00:00:19]} 12. Ke1 {[%clk 01:16:22]} {[%emt 00:06:41]} Nxg5 {[%clk
01:32:24]} {[%emt 00:00:06]} 13. Nxg5 {[%clk 01:15:42]} {[%emt 00:01:10]} Qxg5
{[%clk 01:32:48]} {[%emt 00:00:06]} 14. Kf2 {[%clk 01:14:23]} {[%emt 00:01:50]}
Re8 {[%clk 01:32:38]} {[%emt 00:00:40]} 15. Qd2 {[%clk 01:13:39]} {[%emt
00:01:13]} Qf6+ {[%clk 01:30:36]} {[%emt 00:02:33]} 16. Bf3 {[%clk 01:13:04]}
{[%emt 00:01:05]} Bg4 {[%clk 01:30:11]} {[%emt 00:00:55]} 17. Rhe1 {[%clk
01:09:06]} {[%emt 00:04:29]} Ne5 {[%clk 01:24:06]} {[%emt 00:06:34]} 18. Nd4
{[%clk 01:07:51]} {[%emt 00:01:46]} Re7 {[%clk 01:15:47]} {[%emt 00:08:49]} 19.
Re2 {[%clk 01:02:48]} {[%emt 00:05:32]} Rae8 {[%clk 01:13:33]} {[%emt
00:02:44]} 20. Rae1 {[%clk 01:01:25]} {[%emt 00:01:53]} h5 {[%clk 01:04:38]}
{[%emt 00:09:25]} 21. b3 {[%clk 00:57:27]} {[%emt 00:04:29]} a6 {[%clk
01:04:06]} {[%emt 00:01:02]} 22. a4 {[%clk 00:53:54]} {[%emt 00:04:02]} a5
{[%clk 01:03:33]} {[%emt 00:01:02]} 23. Qc2 {[%clk 00:51:47]} {[%emt 00:02:36]}
g6 {[%clk 00:56:05]} {[%emt 00:08:00]} 24. b4 {[%clk 00:44:16]} {[%emt
00:08:00]} axb4 {[%clk 00:56:00]} {[%emt 00:00:35]} 25. cxb4 {[%clk 00:44:24]}
{[%emt 00:00:22]} Bxf3 {[%clk 00:55:04]} {[%emt 00:01:26]} 26. Nxf3 {[%clk
00:42:27]} {[%emt 00:02:26]} Nxf3 {[%clk 00:55:27]} {[%emt 00:00:08]} 27. gxf3
{[%clk 00:41:49]} {[%emt 00:01:07]} Qd4+ {[%clk 00:53:58]} {[%emt 00:01:59]} 28.
Kf1 {[%clk 00:41:24]} {[%emt 00:00:54]} Qxb4 {[%clk 00:53:19]} {[%emt
00:01:10]} 29. Rxe7 {[%clk 00:39:31]} {[%emt 00:02:23]} Rxe7 {[%clk 00:53:44]}
{[%emt 00:00:06]} 30. Rxe7 {[%clk 00:39:44]} {[%emt 00:00:17]} Qxe7 {[%clk
00:54:09]} {[%emt 00:00:05]} 31. Kf2 {[%clk 00:39:25]} {[%emt 00:00:49]} d4
{[%clk 00:52:27]} {[%emt 00:02:12]} 32. Qc4 {[%clk 00:37:11]} {[%emt 00:02:43]}
Qd7 {[%clk 00:51:43]} {[%emt 00:01:15]} 0-1

[Event "Polofinale MCR junioru 2023"]
[Site "Czech Republic"]
[Date "2023.11.15"]
[Round "6.31"]
[White "Valdman, Jakub"]
[Black "Steinbauer, Sebastian"]
[Result "0-1"]
[TimeControl "90 min per 40 moves + 15 min + 30 sec / move from move 1"]
[WhiteFideId "23718196"]
[BlackFideId "399272"]
[WhiteElo "1594"]
[BlackElo "1869"]

1. e4 {[%clk 01:30:57]} {[%emt 00:00:02]} c5 {[%clk 01:30:51]} {[%emt
00:00:10]} 2. Nf3 {[%clk 01:31:23]} {[%emt 00:00:04]} g6 {[%clk 01:31:16]}
{[%emt 00:00:05]} 3. d4 {[%clk 01:31:48]} {[%emt 00:00:04]} cxd4 {[%clk
01:31:29]} {[%emt 00:00:17]} 4. Nxd4 {[%clk 01:31:56]} {[%emt 00:00:23]} Bg7
{[%clk 01:31:49]} {[%emt 00:00:10]} 5. Nc3 {[%clk 01:31:51]} {[%emt 00:00:35]}
Nc6 {[%clk 01:31:59]} {[%emt 00:00:20]} 6. Be3 {[%clk 01:31:47]} {[%emt
00:00:34]} d6 {[%clk 01:31:25]} {[%emt 00:01:04]} 7. Be2 {[%clk 01:29:44]}
{[%emt 00:02:33]} Nf6 {[%clk 01:30:57]} {[%emt 00:00:58]} 8. O-O {[%clk
01:28:19]} {[%emt 00:01:54]} O-O {[%clk 01:31:20]} {[%emt 00:00:07]} 9. h3
{[%clk 01:22:53]} {[%emt 00:05:56]} Re8 {[%clk 01:29:41]} {[%emt 00:02:09]} 10.
Qd2 {[%clk 01:19:11]} {[%emt 00:04:12]} a6 {[%clk 01:28:17]} {[%emt 00:01:55]}
11. Rad1 {[%clk 01:13:04]} {[%emt 00:06:37]} Qc7 {[%clk 01:27:42]} {[%emt
00:01:06]} 12. f4 {[%clk 01:06:57]} {[%emt 00:06:37]} Bd7 {[%clk 01:26:10]}
{[%emt 00:02:02]} 13. Nxc6 {[%clk 00:51:25]} {[%emt 00:16:02]} Bxc6 {[%clk
01:25:03]} {[%emt 00:01:36]} 14. Bf3 {[%clk 00:51:36]} {[%emt 00:00:19]} Rad8
{[%clk 01:24:28]} {[%emt 00:01:06]} 15. Nd5 {[%clk 00:44:31]} {[%emt 00:07:35]}
Nxd5 {[%clk 01:22:38]} {[%emt 00:02:21]} 16. exd5 {[%clk 00:44:17]} {[%emt
00:00:44]} Bb5 {[%clk 01:23:02]} {[%emt 00:00:05]} 17. Rfe1 {[%clk 00:43:53]}
{[%emt 00:00:54]} Rc8 {[%clk 01:17:45]} {[%emt 00:05:48]} 18. c3 {[%clk
00:40:13]} {[%emt 00:04:10]} Qa5 {[%clk 01:15:34]} {[%emt 00:02:41]} 19. a3
{[%clk 00:37:10]} {[%emt 00:03:33]} Ba4 {[%clk 01:14:10]} {[%emt 00:01:54]} 20.
Rc1 {[%clk 00:33:40]} {[%emt 00:04:00]} Bb3 {[%clk 01:14:25]} {[%emt 00:00:15]}
21. Kh1 {[%clk 00:27:54]} {[%emt 00:06:16]} Qb5 {[%clk 01:11:10]} {[%emt
00:03:44]} 22. Bf2 {[%clk 00:22:57]} {[%emt 00:05:27]} Qc4 {[%clk 01:07:18]}
{[%emt 00:04:22]} 23. Re4 {[%clk 00:17:57]} {[%emt 00:05:29]} Qc7 {[%clk
01:02:22]} {[%emt 00:05:26]} 24. Rb4 {[%clk 00:15:56]} {[%emt 00:02:31]} Bc4
{[%clk 01:02:44]} {[%emt 00:00:08]} 25. b3 {[%clk 00:15:51]} {[%emt 00:00:36]}
Bb5 {[%clk 01:02:34]} {[%emt 00:00:40]} 26. c4 {[%clk 00:15:14]} {[%emt
00:01:08]} e5 {[%clk 00:56:18]} {[%emt 00:06:45]} 27. dxe6 {[%clk 00:13:59]}
{[%emt 00:01:44]} fxe6 {[%clk 00:56:13]} {[%emt 00:00:35]} 28. Rd1 {[%clk
00:13:55]} {[%emt 00:00:33]} Bc6 {[%clk 00:55:28]} {[%emt 00:01:15]} 29. Bxc6
{[%clk 00:13:34]} {[%emt 00:00:51]} bxc6 {[%clk 00:55:24]} {[%emt 00:00:35]} 30.
Rb6 {[%clk 00:12:04]} {[%emt 00:02:00]} d5 {[%clk 00:55:13]} {[%emt 00:00:41]}
31. Rxa6 {[%clk 00:11:52]} {[%emt 00:00:42]} Bh6 {[%clk 00:49:27]} {[%emt
00:06:15]} 32. Be3 {[%clk 00:11:16]} {[%emt 00:01:06]} dxc4 {[%clk 00:48:12]}
{[%emt 00:01:45]} 33. Ra7 {[%clk 00:10:25]} {[%emt 00:01:22]} Qd8 {[%clk
00:48:06]} {[%emt 00:00:35]} 34. bxc4 {[%clk 00:10:09]} {[%emt 00:00:45]} Qxd2
{[%clk 00:47:43]} {[%emt 00:00:53]} 35. Rxd2 {[%clk 00:10:10]} {[%emt
00:00:29]} Ra8 {[%clk 00:48:09]} {[%emt 00:00:04]} 36. g3 {[%clk 00:07:52]}
{[%emt 00:02:48]} e5 {[%clk 00:48:01]} {[%emt 00:00:38]} 37. Rxa8 {[%clk
00:06:47]} {[%emt 00:01:35]} Rxa8 {[%clk 00:48:25]} {[%emt 00:00:07]} 38. Rd3
{[%clk 00:06:59]} {[%emt 00:00:18]} exf4 {[%clk 00:48:32]} {[%emt 00:00:22]} 39.
Bxf4 {[%clk 00:07:08]} {[%emt 00:00:21]} Bxf4 {[%clk 00:48:51]} {[%emt
00:00:11]} 40. gxf4 {[%clk 00:07:34]} {[%emt 00:00:05]} Ra4 {[%clk 00:49:16]}
{[%emt 00:00:05]} 41. Rc3 {[%clk 00:06:38]} {[%emt 00:01:25]} Kf7 {[%clk
00:49:33]} {[%emt 00:00:14]} 42. Kg2 {[%clk 00:03:49]} {[%emt 00:03:19]} Ke6
{[%clk 00:49:03]} {[%emt 00:01:00]} 43. Kf3 {[%clk 00:03:32]} {[%emt 00:00:47]}
Kd6 {[%clk 00:49:21]} {[%emt 00:00:12]} 44. Ke4 {[%clk 00:11:15]} {[%emt
00:08:17]} Kc5 {[%clk 01:03:18]} {[%emt 00:02:04]} 45. Ke5 {[%clk 00:09:59]}
{[%emt 00:01:47]} Ra7 {[%clk 01:02:30]} {[%emt 00:01:17]} 46. h4 {[%clk
00:08:33]} {[%emt 00:01:56]} Re7 {[%clk 01:02:16]} {[%emt 00:00:44]} 47. Kf6
{[%clk 00:07:00]} {[%emt 00:02:03]} Re4 {[%clk 01:02:28]} {[%emt 00:00:18]} 48.
Kg5 {[%clk 00:07:13]} {[%emt 00:00:16]} Re1 {[%clk 00:59:59]} {[%emt 00:02:59]}
49. Kh6 {[%clk 00:01:25]} {[%emt 00:06:19]} Rh1 {[%clk 01:00:19]} {[%emt
00:00:10]} 50. Kxh7 {[%clk 00:01:52]} {[%emt 00:00:03]} Rxh4+ {[%clk 01:00:37]}
{[%emt 00:00:12]} 51. Kxg6 {[%clk 00:02:18]} {[%emt 00:00:04]} Rxf4 {[%clk
01:01:01]} {[%emt 00:00:05]} 52. Kg5 {[%clk 00:01:24]} {[%emt 00:01:25]} Rxc4
{[%clk 01:00:41]} {[%emt 00:00:50]} 53. Rd3 {[%clk 00:01:18]} {[%emt 00:00:35]}
Re4 {[%clk 01:00:48]} {[%emt 00:00:23]} 54. Kf5 {[%clk 00:01:31]} {[%emt
00:00:18]} Re8 {[%clk 01:01:01]} {[%emt 00:00:16]} 55. Rc3+ {[%clk 00:01:01]}
{[%emt 00:01:01]} Kd5 {[%clk 01:01:16]} {[%emt 00:00:14]} 56. Kf4 {[%clk
00:00:59]} {[%emt 00:00:32]} c5 {[%clk 01:01:24]} {[%emt 00:00:23]} 57. a4
{[%clk 00:01:18]} {[%emt 00:00:11]} Kd4 {[%clk 01:01:17]} {[%emt 00:00:36]} 58.
Rc1 {[%clk 00:01:36]} {[%emt 00:00:12]} Rf8 {[%clk 01:01:23]} {[%emt 00:00:24]}
59. Kg3 {[%clk 00:01:12]} {[%emt 00:00:54]} c4 {[%clk 01:01:43]} {[%emt
00:00:10]} 60. a5 {[%clk 00:01:28]} {[%emt 00:00:13]} c3 {[%clk 01:01:59]}
{[%emt 00:00:14]} 61. a6 {[%clk 00:00:48]} {[%emt 00:01:11]} Rf7 {[%clk
01:00:36]} {[%emt 00:01:51]} 62. a7 {[%clk 00:00:38]} {[%emt 00:00:42]} Rxa7
{[%clk 01:00:53]} {[%emt 00:00:13]} 63. Kf2 {[%clk 00:00:56]} {[%emt 00:00:12]}
Kd3 {[%clk 00:59:14]} {[%emt 00:02:09]} 64. Rd1+ {[%clk 00:01:10]} {[%emt
00:00:16]} Kc2 {[%clk 00:59:35]} {[%emt 00:00:09]} 65. Rd8 {[%clk 00:01:16]}
{[%emt 00:00:24]} Re7 {[%clk 00:59:53]} {[%emt 00:00:12]} 66. Rc8 {[%clk
00:00:56]} {[%emt 00:00:50]} Kd2 {[%clk 01:00:17]} {[%emt 00:00:06]} 67. Rd8+
{[%clk 00:01:19]} {[%emt 00:00:08]} Kc1 {[%clk 01:00:27]} {[%emt 00:00:19]} 68.
Rc8 {[%clk 00:00:44]} {[%emt 00:01:06]} c2 {[%clk 01:00:51]} {[%emt 00:00:06]}
69. Rd8 {[%clk 00:00:36]} {[%emt 00:00:38]} Re4 {[%clk 01:01:13]} {[%emt
00:00:08]} 70. Kf3 {[%clk 00:00:57]} {[%emt 00:00:09]} Rb4 {[%clk 01:00:55]}
{[%emt 00:00:47]} 0-1

[Event "Polofinale MCR junioru 2023"]
[Site "Czech Republic"]
[Date "2023.11.15"]
[Round "6.32"]
[White "Bednar, Milos"]
[Black "Svadlenka, Dominik"]
[Result "1-0"]
[TimeControl "90 min per 40 moves + 15 min + 30 sec / move from move 1"]
[WhiteFideId "23709812"]
[BlackFideId "23716258"]
[WhiteElo "1833"]
[BlackElo "1725"]

1. e4 {[%clk 01:30:58]} {[%emt 00:00:02]} c6 {[%clk 01:30:56]} {[%emt
00:00:04]} 2. d4 {[%clk 01:31:23]} {[%emt 00:00:04]} d5 {[%clk 01:31:23]}
{[%emt 00:00:03]} 3. exd5 {[%clk 01:31:51]} {[%emt 00:00:02]} cxd5 {[%clk
01:31:48]} {[%emt 00:00:05]} 4. c4 {[%clk 01:32:14]} {[%emt 00:00:07]} Nf6
{[%clk 01:32:10]} {[%emt 00:00:08]} 5. Nc3 {[%clk 01:32:40]} {[%emt 00:00:04]}
Nc6 {[%clk 01:32:30]} {[%emt 00:00:10]} 6. Be3 {[%clk 01:31:42]} {[%emt
00:01:29]} e6 {[%clk 01:31:03]} {[%emt 00:01:57]} 7. c5 {[%clk 01:27:55]}
{[%emt 00:04:17]} Be7 {[%clk 01:29:25]} {[%emt 00:02:08]} 8. Nf3 {[%clk
01:27:50]} {[%emt 00:00:35]} O-O {[%clk 01:29:25]} {[%emt 00:00:29]} 9. Bb5
{[%clk 01:25:52]} {[%emt 00:02:28]} Qc7 {[%clk 01:20:59]} {[%emt 00:08:56]} 10.
O-O {[%clk 01:22:41]} {[%emt 00:03:41]} Nd7 {[%clk 01:15:34]} {[%emt 00:05:55]}
11. a3 {[%clk 01:17:54]} {[%emt 00:05:18]} b6 {[%clk 01:03:46]} {[%emt
00:12:18]} 12. b4 {[%clk 01:14:07]} {[%emt 00:04:17]} a6 {[%clk 00:54:39]}
{[%emt 00:09:37]} 13. Be2 {[%clk 01:11:20]} {[%emt 00:03:17]} Bf6 {[%clk
00:46:02]} {[%emt 00:09:07]} 14. Qd2 {[%clk 01:08:09]} {[%emt 00:03:40]} bxc5
{[%clk 00:31:07]} {[%emt 00:15:26]} 15. Bf4 {[%clk 01:05:44]} {[%emt 00:02:55]}
Qa7 {[%clk 00:30:57]} {[%emt 00:00:40]} 16. bxc5 {[%clk 01:06:01]} {[%emt
00:00:14]} Nxd4 {[%clk 00:13:13]} {[%emt 00:18:13]} 17. Nxd4 {[%clk 01:05:59]}
{[%emt 00:00:32]} e5 {[%clk 00:10:52]} {[%emt 00:02:51]} 18. Nxd5 {[%clk
01:03:47]} {[%emt 00:02:42]} exf4 {[%clk 00:10:58]} {[%emt 00:00:23]} 19. Nxf6+
{[%clk 01:03:37]} {[%emt 00:00:40]} Nxf6 {[%clk 00:11:20]} {[%emt 00:00:09]} 20.
Bf3 {[%clk 01:03:28]} {[%emt 00:00:39]} Bb7 {[%clk 00:10:43]} {[%emt 00:01:07]}
21. c6 {[%clk 01:02:25]} {[%emt 00:01:33]} Rad8 {[%clk 00:10:36]} {[%emt
00:00:37]} 22. cxb7 {[%clk 01:02:23]} {[%emt 00:00:32]} Rxd4 {[%clk 00:09:38]}
{[%emt 00:01:28]} 23. Qb2 {[%clk 01:01:33]} {[%emt 00:01:20]} Ne4 {[%clk
00:07:59]} {[%emt 00:02:10]} 24. Rab1 {[%clk 00:58:36]} {[%emt 00:03:27]} Rb8
{[%clk 00:07:51]} {[%emt 00:00:37]} 25. Rfc1 {[%clk 00:58:08]} {[%emt
00:00:58]} Nd6 {[%clk 00:07:54]} {[%emt 00:00:28]} 26. Qb6 {[%clk 00:58:15]}
{[%emt 00:00:23]} Qxb6 {[%clk 00:08:03]} {[%emt 00:00:21]} 27. Rxb6 {[%clk
00:58:34]} {[%emt 00:00:10]} a5 {[%clk 00:05:39]} {[%emt 00:02:55]} 28. Ra6
{[%clk 00:58:16]} {[%emt 00:00:49]} Nxb7 {[%clk 00:02:41]} {[%emt 00:03:28]} 29.
Bxb7 {[%clk 00:58:24]} {[%emt 00:00:22]} Ra4 {[%clk 00:02:59]} {[%emt
00:00:12]} 30. Ra8 {[%clk 00:58:15]} {[%emt 00:00:39]} Rxa8 {[%clk 00:03:22]}
{[%emt 00:00:07]} 31. Bxa8 {[%clk 00:58:42]} {[%emt 00:00:03]} g5 {[%clk
00:03:25]} {[%emt 00:00:27]} 32. Rc3 {[%clk 00:58:51]} {[%emt 00:00:21]} Kg7
{[%clk 00:03:35]} {[%emt 00:00:19]} 33. Kf1 {[%clk 00:56:56]} {[%emt 00:02:25]}
Kf6 {[%clk 00:03:00]} {[%emt 00:01:05]} 34. Ke2 {[%clk 00:56:02]} {[%emt
00:01:24]} Rd4 {[%clk 00:02:43]} {[%emt 00:00:47]} 35. Bc6 {[%clk 00:56:03]}
{[%emt 00:00:29]} h5 {[%clk 00:01:23]} {[%emt 00:01:50]} 36. Rc5 {[%clk
00:55:18]} {[%emt 00:01:15]} Rd6 {[%clk 00:00:58]} {[%emt 00:00:54]} 37. Be4
{[%clk 00:55:17]} {[%emt 00:00:31]} Re6 {[%clk 00:00:39]} {[%emt 00:00:49]} 38.
f3 {[%clk 00:54:45]} {[%emt 00:01:03]} a4 {[%clk 00:00:38]} {[%emt 00:00:31]}
39. Rc6 {[%clk 00:54:47]} {[%emt 00:00:28]} g4 {[%clk 00:00:49]} {[%emt
00:00:19]} 40. Rxe6+ {[%clk 00:55:08]} {[%emt 00:00:08]} 1-0